[Event "GrandPrix_29.05"]
[Site "Chess.com"]
[Date "2020.05.29"]
[Round "2"]
[White "Yurovskykh_Alexander"]
[Black "GeorgMeier"]
[Result "0-1"]
[WhiteElo "2236"]
[BlackElo "2645"]
[TimeControl "600+2"]
[EndTime "9:57:34 PDT"]
[Termination "GeorgMeier won by resignation"]

1. d4 {[%clk 0:09:58.3]} 1... e6 {[%clk 0:09:56.3]} 2. Nf3 {[%clk 0:09:56.4]}
2... Nf6 {[%clk 0:09:57]} 3. Bf4 {[%clk 0:09:55.7]} 3... Be7 {[%clk 0:09:57.9]}
4. e3 {[%clk 0:09:56.7]} 4... Nh5 {[%clk 0:09:59]} 5. Bg3 {[%clk 0:09:56.7]}
5... d6 {[%clk 0:10:00.3]} 6. c4 {[%clk 0:09:53.1]} 6... b6 {[%clk 0:09:39.9]}
7. Nc3 {[%clk 0:09:51.4]} 7... Bb7 {[%clk 0:09:38.6]} 8. Be2 {[%clk 0:09:24.3]}
8... Nd7 {[%clk 0:09:38]} 9. Qc2 {[%clk 0:09:17]} 9... a6 {[%clk 0:09:21.8]} 10.
O-O-O {[%clk 0:08:13]} 10... g6 {[%clk 0:08:57]} 11. Ne1 {[%clk 0:08:05.2]}
11... Nxg3 {[%clk 0:08:05.2]} 12. hxg3 {[%clk 0:08:07.1]} 12... Kf8 {[%clk
0:08:05.4]} 13. Bf3 {[%clk 0:08:03.6]} 13... c6 {[%clk 0:08:04.6]} 14. Nd3
{[%clk 0:07:43.6]} 14... Kg7 {[%clk 0:07:53.7]} 15. g4 {[%clk 0:07:42.9]} 15...
Rc8 {[%clk 0:06:06.5]} 16. Kb1 {[%clk 0:07:32.6]} 16... d5 {[%clk 0:05:40.2]}
17. cxd5 {[%clk 0:06:00]} 17... cxd5 {[%clk 0:05:39.8]} 18. Qe2 {[%clk
0:05:13.7]} 18... b5 {[%clk 0:05:23.2]} 19. e4 {[%clk 0:04:30]} 19... b4 {[%clk
0:04:07]} 20. Na4 {[%clk 0:04:28.9]} 20... Qa5 {[%clk 0:04:03.7]} 21. Nac5
{[%clk 0:02:37.7]} 21... Nxc5 {[%clk 0:03:01.2]} 22. dxc5 {[%clk 0:02:29.5]}
22... Rcd8 {[%clk 0:02:35.6]} 23. e5 {[%clk 0:00:57.6]} 23... h6 {[%clk
0:00:45.3]} 24. g3 {[%clk 0:00:52.7]} 24... Bc6 {[%clk 0:00:38.1]} 25. Bg2
{[%clk 0:00:47.6]} 25... Bb5 {[%clk 0:00:31.8]} 26. Qd2 {[%clk 0:00:45.8]} 26...
Bc4 {[%clk 0:00:28.6]} 27. b3 {[%clk 0:00:44.9]} 27... Bxd3+ {[%clk 0:00:29.1]}
28. Qxd3 {[%clk 0:00:46.8]} 28... Qxc5 {[%clk 0:00:18.8]} 29. Qd4 {[%clk
0:00:33.8]} 29... Qxd4 {[%clk 0:00:15.4]} 30. Rxd4 {[%clk 0:00:35.7]} 30... Rc8
{[%clk 0:00:16.9]} 31. Rc1 {[%clk 0:00:25]} 31... Rxc1+ {[%clk 0:00:16]} 32.
Kxc1 {[%clk 0:00:26.9]} 32... Rc8+ {[%clk 0:00:17.3]} 33. Kd1 {[%clk 0:00:26.8]}
33... Rc3 {[%clk 0:00:15.9]} 34. f3 {[%clk 0:00:04.6]} 34... Bc5 {[%clk
0:00:15.1]} 35. Rd2 {[%clk 0:00:05.8]} 35... Be3 {[%clk 0:00:13.7]} 36. Rc2
{[%clk 0:00:06.9]} 36... Rxc2 {[%clk 0:00:13.5]} 37. Kxc2 {[%clk 0:00:08.8]}
37... Bf2 {[%clk 0:00:15.1]} 38. Bf1 {[%clk 0:00:10.1]} 38... Bxg3 {[%clk
0:00:16.1]} 39. Bxa6 {[%clk 0:00:10.9]} 39... Bxe5 {[%clk 0:00:17.3]} 40. Be2
{[%clk 0:00:08.6]} 40... h5 {[%clk 0:00:17.5]} 41. gxh5 {[%clk 0:00:10]} 41...
gxh5 {[%clk 0:00:19.4]} 42. f4 {[%clk 0:00:11.7]} 42... Bxf4 {[%clk 0:00:20.6]}
43. Bxh5 {[%clk 0:00:13.4]} 43... f5 {[%clk 0:00:21.6]} 44. Be8 {[%clk
0:00:07.5]} 44... Kf6 {[%clk 0:00:22.1]} 45. Bd7 {[%clk 0:00:08.9]} 45... Ke7
{[%clk 0:00:23.1]} 46. Bc8 {[%clk 0:00:09.9]} 46... Bd6 {[%clk 0:00:24.3]} 47.
Kd3 {[%clk 0:00:10.3]} 47... Bc5 {[%clk 0:00:25.6]} 48. Ke2 {[%clk 0:00:10.5]}
48... Kf6 {[%clk 0:00:25.2]} 49. Bb7 {[%clk 0:00:11.5]} 49... d4 {[%clk
0:00:21.5]} 50. Bc8 {[%clk 0:00:08.9]} 50... e5 {[%clk 0:00:21.9]} 51. Kd3
{[%clk 0:00:08.9]} 51... e4+ {[%clk 0:00:23]} 52. Kc4 {[%clk 0:00:10.5]} 52...
d3 {[%clk 0:00:24.4]} 53. Kxc5 {[%clk 0:00:06.3]} 53... d2 {[%clk 0:00:25.4]}
0-1

[Event "GrandPrix_29.05"]
[Site "Chess.com"]
[Date "2020.05.29"]
[Round "2"]
[White "SoltaniciR"]
[Black "Alex_Krayz"]
[Result "0-1"]
[WhiteElo "1899"]
[BlackElo "2198"]
[TimeControl "600+2"]
[EndTime "9:57:39 PDT"]
[Termination "Alex_Krayz won by resignation"]

1. e4 {[%clk 0:10:01.9]} 1... e6 {[%clk 0:10:00]} 2. d4 {[%clk 0:09:56.7]} 2...
d5 {[%clk 0:09:59.8]} 3. Nd2 {[%clk 0:09:57.4]} 3... Nf6 {[%clk 0:09:59.6]} 4.
e5 {[%clk 0:09:57.6]} 4... Nfd7 {[%clk 0:10:00.3]} 5. Bd3 {[%clk 0:09:57.4]}
5... c5 {[%clk 0:10:00.6]} 6. c3 {[%clk 0:09:58]} 6... Nc6 {[%clk 0:10:01.3]} 7.
Ngf3 {[%clk 0:09:58.5]} 7... Be7 {[%clk 0:09:59.2]} 8. O-O {[%clk 0:09:58.4]}
8... g5 {[%clk 0:09:59.4]} 9. dxc5 {[%clk 0:09:43.5]} 9... g4 {[%clk 0:09:59.1]}
10. Nd4 {[%clk 0:09:41.6]} 10... Ncxe5 {[%clk 0:09:48]} 11. Bc2 {[%clk
0:08:41.6]} 11... Bxc5 {[%clk 0:09:34]} 12. f4 {[%clk 0:08:06.4]} 12... Bxd4+
{[%clk 0:08:17.4]} 13. cxd4 {[%clk 0:08:05.5]} 13... Nc6 {[%clk 0:08:18]} 14. f5
{[%clk 0:07:16.2]} 14... Nf6 {[%clk 0:07:45.9]} 15. fxe6 {[%clk 0:07:09.5]}
15... Bxe6 {[%clk 0:07:11.4]} 16. Nb3 {[%clk 0:07:07.3]} 16... Ne4 {[%clk
0:07:05.8]} 17. Nc5 {[%clk 0:05:00.5]} 17... Nxc5 {[%clk 0:06:08.8]} 18. dxc5
{[%clk 0:05:02.4]} 18... Qe7 {[%clk 0:06:09.5]} 19. b4 {[%clk 0:04:31.5]} 19...
O-O-O {[%clk 0:05:32.9]} 20. Rb1 {[%clk 0:02:48.3]} 20... d4 {[%clk 0:05:07.1]}
21. Bf4 {[%clk 0:02:12.6]} 21... d3 {[%clk 0:03:08.7]} 22. Bxd3 {[%clk
0:02:02.1]} 22... Nxb4 {[%clk 0:02:27.2]} 23. Rxb4 {[%clk 0:00:15.1]} 23...
Qxc5+ {[%clk 0:02:24.7]} 24. Kh1 {[%clk 0:00:08]} 24... Qxb4 {[%clk 0:02:23.6]}
25. Qc2+ {[%clk 0:00:09.4]} 25... Kd7 {[%clk 0:02:22.1]} 26. Qc7+ {[%clk
0:00:06.8]} 26... Ke8 {[%clk 0:02:20.9]} 27. Bc2 {[%clk 0:00:02.8]} 27... Qc4
{[%clk 0:01:25.8]} 28. Qxc4 {[%clk 0:00:03.2]} 28... Bxc4 {[%clk 0:01:24.5]} 29.
Re1+ {[%clk 0:00:04.4]} 29... Kd7 {[%clk 0:01:21.6]} 30. Kg1 {[%clk 0:00:03.4]}
30... h5 {[%clk 0:01:15.1]} 31. Bf5+ {[%clk 0:00:02.4]} 31... Kc6 {[%clk
0:01:08.7]} 32. Rc1 {[%clk 0:00:03.4]} 32... b5 {[%clk 0:01:06.9]} 33. a4 {[%clk
0:00:04.8]} 33... a6 {[%clk 0:01:05.3]} 34. a5 {[%clk 0:00:05.5]} 34... Rhe8
{[%clk 0:01:02.3]} 35. h3 {[%clk 0:00:06.4]} 35... gxh3 {[%clk 0:00:56.1]} 36.
Bxh3 {[%clk 0:00:08.3]} 36... Rd4 {[%clk 0:00:52.7]} 37. g3 {[%clk 0:00:09.3]}
37... Kc5 {[%clk 0:00:38.4]} 38. Kf2 {[%clk 0:00:09.1]} 38... Rde4 {[%clk
0:00:33.7]} 39. Bc7 {[%clk 0:00:07.1]} 39... Re2+ {[%clk 0:00:29.6]} 40. Kf3
{[%clk 0:00:08.2]} 40... R8e3+ {[%clk 0:00:19.6]} 41. Kf4 {[%clk 0:00:09.3]}
41... Re4+ {[%clk 0:00:17.7]} 42. Kg5 {[%clk 0:00:06.6]} 42... b4 {[%clk
0:00:16.3]} 43. Bf1 {[%clk 0:00:06.1]} 43... b3 {[%clk 0:00:13.6]} 44. Bxe2
{[%clk 0:00:04.7]} 44... Rxe2 {[%clk 0:00:13.5]} 45. Bb6+ {[%clk 0:00:05.8]}
45... Kb4 {[%clk 0:00:08.5]} 46. Bd4 {[%clk 0:00:06.6]} 46... b2 {[%clk
0:00:08.2]} 47. Rb1 {[%clk 0:00:07.6]} 47... Kb3 {[%clk 0:00:09.3]} 48. Kxh5
{[%clk 0:00:07.7]} 48... Bd3 {[%clk 0:00:10.1]} 49. Rxb2+ {[%clk 0:00:07.8]}
49... Rxb2 {[%clk 0:00:10.9]} 50. Bxb2 {[%clk 0:00:09.2]} 50... Kxb2 {[%clk
0:00:12]} 51. Kg5 {[%clk 0:00:10.4]} 51... Bc4 {[%clk 0:00:13.1]} 0-1

[Event "GrandPrix_29.05"]
[Site "Chess.com"]
[Date "2020.05.29"]
[Round "2"]
[White "ValeriyGrinev"]
[Black "madamDD"]
[Result "0-1"]
[WhiteElo "2047"]
[BlackElo "2542"]
[TimeControl "600+2"]
[EndTime "9:57:41 PDT"]
[Termination "madamDD won by resignation"]

1. c4 {[%clk 0:10:01.9]} 1... b6 {[%clk 0:09:57.8]} 2. d4 {[%clk 0:09:56.4]}
2... Bb7 {[%clk 0:09:57]} 3. Nc3 {[%clk 0:09:56.4]} 3... Nf6 {[%clk 0:09:54.8]}
4. d5 {[%clk 0:09:49.5]} 4... e6 {[%clk 0:09:39.6]} 5. a3 {[%clk 0:09:48.9]}
5... a5 {[%clk 0:09:24.8]} 6. e4 {[%clk 0:09:42]} 6... exd5 {[%clk 0:08:58.4]}
7. exd5 {[%clk 0:09:41.4]} 7... Bc5 {[%clk 0:08:55.9]} 8. Be2 {[%clk 0:09:15]}
8... h6 {[%clk 0:08:45.5]} 9. Nf3 {[%clk 0:09:13.7]} 9... O-O {[%clk 0:08:38.2]}
10. O-O {[%clk 0:09:13.1]} 10... c6 {[%clk 0:08:20.3]} 11. d6 {[%clk 0:08:05.2]}
11... Re8 {[%clk 0:07:18.1]} 12. Na4 {[%clk 0:06:19.6]} 12... Bxd6 {[%clk
0:07:12]} 13. Qxd6 {[%clk 0:06:04]} 13... Rxe2 {[%clk 0:07:11.9]} 14. Be3 {[%clk
0:06:05.2]} 14... c5 {[%clk 0:06:00.4]} 15. Qd3 {[%clk 0:04:31.3]} 15... Bxf3
{[%clk 0:05:52.6]} 16. gxf3 {[%clk 0:04:33.2]} 16... Rxe3 {[%clk 0:05:52.3]} 17.
fxe3 {[%clk 0:04:31.6]} 17... Nc6 {[%clk 0:05:49.4]} 18. Qd6 {[%clk 0:04:23.9]}
18... Ne8 {[%clk 0:05:39.7]} 19. Qf4 {[%clk 0:04:21.8]} 19... d6 {[%clk
0:05:29.6]} 20. Rad1 {[%clk 0:04:20.9]} 20... Ne5 {[%clk 0:05:22.3]} 21. Nc3
{[%clk 0:04:09.9]} 21... Ng6 {[%clk 0:04:49.4]} 22. Qe4 {[%clk 0:03:45.2]} 22...
Nf6 {[%clk 0:04:46.9]} 23. Qc6 {[%clk 0:03:36.1]} 23... Ne5 {[%clk 0:04:31.3]}
24. Qb5 {[%clk 0:03:08.5]} 24... Nh5 {[%clk 0:03:17.9]} 25. f4 {[%clk
0:02:26.9]} 25... Ng4 {[%clk 0:03:07]} 26. Rf3 {[%clk 0:01:31]} 26... Qh4 {[%clk
0:02:51]} 27. h3 {[%clk 0:01:26.4]} 27... Ngf6 {[%clk 0:02:49.7]} 28. Qxb6
{[%clk 0:01:01.2]} 28... Ng3 {[%clk 0:02:46.1]} 29. Kg2 {[%clk 0:00:58.5]} 29...
Nf5 {[%clk 0:02:37.2]} 30. Qb3 {[%clk 0:00:39.6]} 30... Re8 {[%clk 0:02:04.4]}
31. Nd5 {[%clk 0:00:40.8]} 31... Ne4 {[%clk 0:02:00.4]} 32. Qd3 {[%clk
0:00:34.9]} 32... Re6 {[%clk 0:01:54.4]} 33. Kh2 {[%clk 0:00:29.3]} 33... Qh5
{[%clk 0:01:31]} 34. Qf1 {[%clk 0:00:25.2]} 34... Nh4 {[%clk 0:01:19.7]} 35. Rg3
{[%clk 0:00:10.1]} 35... Nxg3 {[%clk 0:01:18]} 36. Kxg3 {[%clk 0:00:12]} 36...
Rg6+ {[%clk 0:01:14.8]} 37. Kf2 {[%clk 0:00:06.2]} 37... Qf3+ {[%clk 0:01:09.6]}
38. Ke1 {[%clk 0:00:07.4]} 38... Qe4 {[%clk 0:00:40.1]} 39. Rd2 {[%clk
0:00:08.1]} 39... Nf3+ {[%clk 0:00:37.7]} 40. Kd1 {[%clk 0:00:09.2]} 40... Rg1
{[%clk 0:00:24.5]} 41. Qxg1 {[%clk 0:00:08.8]} 41... Nxg1 {[%clk 0:00:25.6]} 42.
Nc3 {[%clk 0:00:10.1]} 42... Qxe3 {[%clk 0:00:24.2]} 43. Rxd6 {[%clk 0:00:11.3]}
43... Qxf4 {[%clk 0:00:21.6]} 44. Rd8+ {[%clk 0:00:12.1]} 44... Kh7 {[%clk
0:00:22.4]} 45. Kc2 {[%clk 0:00:14]} 45... Qxc4 {[%clk 0:00:21.9]} 46. Rd5
{[%clk 0:00:14.1]} 46... Ne2 {[%clk 0:00:19.5]} 47. Rd3 {[%clk 0:00:15.3]} 47...
Nxc3 {[%clk 0:00:19.4]} 48. Rxc3 {[%clk 0:00:16.3]} 48... Qe4+ {[%clk
0:00:20.3]} 49. Kb3 {[%clk 0:00:17.4]} 49... a4+ {[%clk 0:00:21.1]} 50. Ka2
{[%clk 0:00:18.5]} 50... c4 {[%clk 0:00:22.5]} 51. Ka1 {[%clk 0:00:18.9]} 51...
f5 {[%clk 0:00:23.4]} 52. Ka2 {[%clk 0:00:20.3]} 52... f4 {[%clk 0:00:24.9]} 53.
h4 {[%clk 0:00:20.1]} 53... f3 {[%clk 0:00:25.9]} 54. h5 {[%clk 0:00:21.8]}
54... f2 {[%clk 0:00:25.7]} 55. Rc1 {[%clk 0:00:23.4]} 55... Qd3 {[%clk
0:00:25.4]} 56. b4 {[%clk 0:00:23.9]} 56... cxb3+ {[%clk 0:00:22.2]} 57. Kb2
{[%clk 0:00:25.1]} 57... f1=Q {[%clk 0:00:17.5]} 0-1

[Event "GrandPrix_29.05"]
[Site "Chess.com"]
[Date "2020.05.29"]
[Round "2"]
[White "GM_dmitrij"]
[Black "0plaksin0"]
[Result "1-0"]
[WhiteElo "2563"]
[BlackElo "2193"]
[TimeControl "600+2"]
[EndTime "9:57:44 PDT"]
[Termination "GM_dmitrij won by resignation"]

1. e4 {[%clk 0:09:57.5]} 1... c5 {[%clk 0:10:00.9]} 2. Nf3 {[%clk 0:09:57.7]}
2... d6 {[%clk 0:10:02.2]} 3. d4 {[%clk 0:09:55.5]} 3... cxd4 {[%clk 0:10:04.1]}
4. Nxd4 {[%clk 0:09:57.4]} 4... Nf6 {[%clk 0:10:05.4]} 5. Nc3 {[%clk 0:09:58.6]}
5... g6 {[%clk 0:10:05.9]} 6. Be3 {[%clk 0:09:58.9]} 6... Bg7 {[%clk 0:10:06.9]}
7. Be2 {[%clk 0:10:00.1]} 7... O-O {[%clk 0:10:06.6]} 8. Qd2 {[%clk 0:10:01.3]}
8... Nc6 {[%clk 0:10:03.5]} 9. O-O-O {[%clk 0:10:02.1]} 9... Nxd4 {[%clk
0:09:53.3]} 10. Bxd4 {[%clk 0:10:03.3]} 10... Be6 {[%clk 0:09:54.9]} 11. h4
{[%clk 0:09:40.9]} 11... Qa5 {[%clk 0:09:44.8]} 12. a3 {[%clk 0:08:57.2]} 12...
Rfc8 {[%clk 0:09:25.2]} 13. Kb1 {[%clk 0:08:36.3]} 13... Rab8 {[%clk 0:09:05.9]}
14. Bf3 {[%clk 0:08:06.2]} 14... b5 {[%clk 0:07:06.6]} 15. Nd5 {[%clk
0:08:05.9]} 15... Qxd2 {[%clk 0:06:57.3]} 16. Rxd2 {[%clk 0:08:07.8]} 16... Bxd5
{[%clk 0:05:14.9]} 17. exd5 {[%clk 0:08:07.3]} 17... Rb7 {[%clk 0:05:15.9]} 18.
h5 {[%clk 0:07:40.9]} 18... Nd7 {[%clk 0:05:04]} 19. Bg4 {[%clk 0:07:04.6]}
19... f5 {[%clk 0:04:32.6]} 20. Bd1 {[%clk 0:06:23.5]} 20... b4 {[%clk
0:03:32.2]} 21. axb4 {[%clk 0:05:42.6]} 21... Rxb4 {[%clk 0:03:30.4]} 22. c3
{[%clk 0:05:18.9]} 22... Rb7 {[%clk 0:03:30.7]} 23. Re1 {[%clk 0:03:16.6]} 23...
Ne5 {[%clk 0:02:56]} 24. Be2 {[%clk 0:02:57.6]} 24... Rcb8 {[%clk 0:02:18.8]}
25. Ba6 {[%clk 0:02:35.4]} 25... Rc7 {[%clk 0:02:16.8]} 26. Rde2 {[%clk
0:02:03.2]} 26... g5 {[%clk 0:00:32.5]} 27. Kc2 {[%clk 0:01:54.4]} 27... Bf6
{[%clk 0:00:19.4]} 28. Ra1 {[%clk 0:01:09]} 28... Nd7 {[%clk 0:00:06.1]} 29. Rd2
{[%clk 0:00:11.2]} 29... Bxd4 {[%clk 0:00:05.6]} 30. Rxd4 {[%clk 0:00:13.1]}
30... Nc5 {[%clk 0:00:06.5]} 31. Bc4 {[%clk 0:00:06.9]} 31... Kf7 {[%clk
0:00:07.3]} 32. f3 {[%clk 0:00:08]} 32... Kf6 {[%clk 0:00:08.3]} 33. b4 {[%clk
0:00:08.8]} 33... Nd7 {[%clk 0:00:09.2]} 34. Kb3 {[%clk 0:00:09.1]} 34... Ne5
{[%clk 0:00:09.6]} 35. Be2 {[%clk 0:00:10.2]} 35... f4 {[%clk 0:00:10.6]} 36. c4
{[%clk 0:00:11.3]} 36... Rcb7 {[%clk 0:00:10.8]} 37. Ra4 {[%clk 0:00:11]} 37...
Nd7 {[%clk 0:00:09.3]} 38. Kc3 {[%clk 0:00:10.6]} 38... Ke5 {[%clk 0:00:06.4]}
39. Rd1 {[%clk 0:00:11.5]} 39... h6 {[%clk 0:00:06.3]} 40. Re1 {[%clk
0:00:11.5]} 40... Kf6 {[%clk 0:00:07.3]} 41. Rea1 {[%clk 0:00:12.6]} 41... Ne5
{[%clk 0:00:04.7]} 42. b5 {[%clk 0:00:10.9]} 42... Ra8 {[%clk 0:00:06]} 43. Kd4
{[%clk 0:00:11.1]} 43... Nd7 {[%clk 0:00:07.1]} 44. R4a3 {[%clk 0:00:10.9]}
44... Nc5 {[%clk 0:00:07.6]} 45. Bd1 {[%clk 0:00:12.1]} 45... Nd7 {[%clk
0:00:03.8]} 46. Ra6 {[%clk 0:00:11.9]} 46... Nc5 {[%clk 0:00:04.8]} 47. Rc6
{[%clk 0:00:13.2]} 47... Nd7 {[%clk 0:00:03.5]} 48. Bc2 {[%clk 0:00:14.1]} 48...
Nc5 {[%clk 0:00:04.7]} 49. Ra3 {[%clk 0:00:14.1]} 49... Nd7 {[%clk 0:00:05.7]}
50. Raa6 {[%clk 0:00:13.5]} 50... Nc5 {[%clk 0:00:06.9]} 51. Rxc5 {[%clk
0:00:14.7]} 51... e5+ {[%clk 0:00:05.8]} 52. Kc3 {[%clk 0:00:15.1]} 52... Rb6
{[%clk 0:00:06]} 53. Rc6 {[%clk 0:00:15.9]} 53... Rxa6 {[%clk 0:00:06.6]} 54.
Rxa6 {[%clk 0:00:17.8]} 1-0

[Event "GrandPrix_29.05"]
[Site "Chess.com"]
[Date "2020.05.29"]
[Round "2"]
[White "Zubrrr"]
[Black "Artur0208"]
[Result "0-1"]
[WhiteElo "2590"]
[BlackElo "2327"]
[TimeControl "600+2"]
[EndTime "9:57:45 PDT"]
[Termination "Artur0208 won by resignation"]

1. d4 {[%clk 0:10:01.4]} 1... d5 {[%clk 0:09:54.8]} 2. c4 {[%clk 0:10:00.9]}
2... e6 {[%clk 0:09:56.1]} 3. Nf3 {[%clk 0:10:01.6]} 3... Nf6 {[%clk 0:09:56.5]}
4. g3 {[%clk 0:10:02.3]} 4... dxc4 {[%clk 0:09:57.4]} 5. Bg2 {[%clk 0:10:02.2]}
5... Nc6 {[%clk 0:09:57.9]} 6. Qa4 {[%clk 0:10:01.8]} 6... Bb4+ {[%clk
0:09:58.1]} 7. Bd2 {[%clk 0:10:01.7]} 7... Nd5 {[%clk 0:09:59.3]} 8. Qb5 {[%clk
0:09:38.3]} 8... O-O {[%clk 0:09:50.2]} 9. Qxc4 {[%clk 0:09:18.6]} 9... Nb6
{[%clk 0:09:16.7]} 10. Qd3 {[%clk 0:08:19.9]} 10... Bxd2+ {[%clk 0:08:55.7]} 11.
Nbxd2 {[%clk 0:06:49.2]} 11... e5 {[%clk 0:08:28]} 12. dxe5 {[%clk 0:06:27.9]}
12... Qxd3 {[%clk 0:06:59.7]} 13. exd3 {[%clk 0:06:29.8]} 13... Rd8 {[%clk
0:07:01.1]} 14. O-O {[%clk 0:05:12.9]} 14... Rxd3 {[%clk 0:06:58.5]} 15. Nb3
{[%clk 0:05:07.4]} 15... Bg4 {[%clk 0:06:57.1]} 16. Ng5 {[%clk 0:05:03.6]} 16...
h6 {[%clk 0:04:33.5]} 17. Ne4 {[%clk 0:05:01.2]} 17... Nxe5 {[%clk 0:04:32.6]}
18. Nec5 {[%clk 0:04:55.1]} 18... Rd6 {[%clk 0:02:49.2]} 19. Nxb7 {[%clk
0:04:54.8]} 19... Rf6 {[%clk 0:02:48.9]} 20. f4 {[%clk 0:04:31.3]} 20... Nec4
{[%clk 0:02:48.1]} 21. Rf2 {[%clk 0:03:50.2]} 21... Re8 {[%clk 0:02:44.2]} 22.
h3 {[%clk 0:03:19.8]} 22... Bc8 {[%clk 0:02:43.8]} 23. N7c5 {[%clk 0:03:18.7]}
23... Re3 {[%clk 0:02:37.9]} 24. Kh2 {[%clk 0:03:11.6]} 24... h5 {[%clk
0:02:38.6]} 25. Rc1 {[%clk 0:02:33]} 25... Rg6 {[%clk 0:01:59.3]} 26. Bf3 {[%clk
0:02:33.5]} 26... Nxb2 {[%clk 0:01:55.7]} 27. f5 {[%clk 0:01:37.1]} 27... Rg5
{[%clk 0:01:14.2]} 28. g4 {[%clk 0:01:38.2]} 28... hxg4 {[%clk 0:01:07.3]} 29.
hxg4 {[%clk 0:01:40.1]} 29... g6 {[%clk 0:00:32.4]} 30. Ne4 {[%clk 0:01:36.6]}
30... Nd3 {[%clk 0:00:18.9]} 31. Nxg5 {[%clk 0:01:35.7]} 31... Nxf2 {[%clk
0:00:19.6]} 32. Rxc7 {[%clk 0:01:36]} 32... f6 {[%clk 0:00:21]} 33. Bd5+ {[%clk
0:01:26.7]} 33... Nxd5 {[%clk 0:00:21]} 34. Rxc8+ {[%clk 0:01:27.7]} 34... Kg7
{[%clk 0:00:22.5]} 35. Ne6+ {[%clk 0:01:25.2]} 35... Kf7 {[%clk 0:00:19.4]} 36.
Rf8+ {[%clk 0:00:54.5]} 36... Ke7 {[%clk 0:00:19.3]} 37. fxg6 {[%clk 0:00:55.9]}
37... Nxg4+ {[%clk 0:00:20.1]} 38. Kh1 {[%clk 0:00:37.5]} 38... Kxe6 {[%clk
0:00:16.3]} 39. g7 {[%clk 0:00:35.1]} 39... Rh3+ {[%clk 0:00:16]} 40. Kg1 {[%clk
0:00:32.6]} 40... Rg3+ {[%clk 0:00:16.4]} 41. Kf1 {[%clk 0:00:28.2]} 41... Nge3+
{[%clk 0:00:17.4]} 42. Kf2 {[%clk 0:00:29]} 42... Rxg7 {[%clk 0:00:19.3]} 43.
Nd4+ {[%clk 0:00:28]} 43... Ke5 {[%clk 0:00:19.9]} 44. Nf3+ {[%clk 0:00:19.9]}
44... Kf4 {[%clk 0:00:20.5]} 45. Ne1 {[%clk 0:00:21.3]} 45... Rb7 {[%clk
0:00:11.5]} 46. Nd3+ {[%clk 0:00:21.6]} 46... Kf5 {[%clk 0:00:11.8]} 47. Re8
{[%clk 0:00:18.3]} 47... Nc4 {[%clk 0:00:10.9]} 48. Rh8 {[%clk 0:00:15.6]} 48...
Ne5 {[%clk 0:00:09.5]} 49. Nc5 {[%clk 0:00:07.9]} 49... Rb2+ {[%clk 0:00:09.4]}
50. Ke1 {[%clk 0:00:06.8]} 50... Nf3+ {[%clk 0:00:09.9]} 51. Kd1 {[%clk
0:00:07.7]} 51... Ne3+ {[%clk 0:00:08.5]} 52. Kc1 {[%clk 0:00:09.2]} 52... Rc2+
{[%clk 0:00:09.7]} 53. Kb1 {[%clk 0:00:10.6]} 53... Rxc5 {[%clk 0:00:11.6]} 0-1

[Event "GrandPrix_29.05"]
[Site "Chess.com"]
[Date "2020.05.29"]
[Round "2"]
[White "wnstop"]
[Black "kotmizer"]
[Result "0-1"]
[WhiteElo "2161"]
[BlackElo "2259"]
[TimeControl "600+2"]
[EndTime "9:57:48 PDT"]
[Termination "kotmizer won by resignation"]

1. e4 {[%clk 0:10:01.9]} 1... e5 {[%clk 0:09:59.4]} 2. Nf3 {[%clk 0:09:59.8]}
2... Nc6 {[%clk 0:09:59.7]} 3. Bc4 {[%clk 0:09:59.9]} 3... Nf6 {[%clk
0:09:59.9]} 4. d3 {[%clk 0:10:00]} 4... Be7 {[%clk 0:09:59.9]} 5. O-O {[%clk
0:09:59]} 5... O-O {[%clk 0:10:00.2]} 6. Re1 {[%clk 0:09:58.5]} 6... d6 {[%clk
0:09:59.3]} 7. a4 {[%clk 0:09:57]} 7... h6 {[%clk 0:09:56.7]} 8. h3 {[%clk
0:09:26.7]} 8... Kh8 {[%clk 0:09:44.8]} 9. Nc3 {[%clk 0:08:58.2]} 9... Ng8
{[%clk 0:09:18.4]} 10. Nd5 {[%clk 0:08:56.4]} 10... f5 {[%clk 0:09:15]} 11. b4
{[%clk 0:08:19.7]} 11... fxe4 {[%clk 0:08:55.2]} 12. dxe4 {[%clk 0:08:17.1]}
12... Bf6 {[%clk 0:08:36.1]} 13. b5 {[%clk 0:07:15.4]} 13... Na5 {[%clk
0:07:46.4]} 14. Bf1 {[%clk 0:06:27.1]} 14... b6 {[%clk 0:07:45.8]} 15. Bd2
{[%clk 0:06:04.3]} 15... Nb7 {[%clk 0:07:44.8]} 16. Nh2 {[%clk 0:05:32.2]} 16...
Ne7 {[%clk 0:07:35.6]} 17. Nxf6 {[%clk 0:04:18.4]} 17... Rxf6 {[%clk 0:07:34.9]}
18. f4 {[%clk 0:04:16.9]} 18... exf4 {[%clk 0:07:19.1]} 19. Bc3 {[%clk
0:04:08.2]} 19... Ng6 {[%clk 0:07:12.6]} 20. Bxf6 {[%clk 0:03:41.5]} 20... Qxf6
{[%clk 0:07:12.9]} 21. Bc4 {[%clk 0:03:39.4]} 21... Na5 {[%clk 0:05:26.8]} 22.
Bd5 {[%clk 0:03:17.5]} 22... Rb8 {[%clk 0:05:26.9]} 23. Qh5 {[%clk 0:02:52.2]}
23... Bd7 {[%clk 0:05:03.2]} 24. Nf3 {[%clk 0:02:19.5]} 24... Re8 {[%clk
0:04:45.7]} 25. Rad1 {[%clk 0:02:12]} 25... Re7 {[%clk 0:04:18]} 26. Kh1 {[%clk
0:02:01.6]} 26... c6 {[%clk 0:02:55.4]} 27. Ba2 {[%clk 0:01:14.5]} 27... cxb5
{[%clk 0:02:35.7]} 28. axb5 {[%clk 0:01:16.4]} 28... Nb7 {[%clk 0:02:21]} 29.
Bd5 {[%clk 0:00:42.3]} 29... Nc5 {[%clk 0:02:10]} 30. c4 {[%clk 0:00:42.8]}
30... Kh7 {[%clk 0:01:42]} 31. Nd4 {[%clk 0:00:20.2]} 31... Re5 {[%clk
0:01:37.9]} 32. Qe2 {[%clk 0:00:16.8]} 32... Rg5 {[%clk 0:01:32.9]} 33. Nf3
{[%clk 0:00:13.6]} 33... Rh5 {[%clk 0:01:28.8]} 34. Nh2 {[%clk 0:00:09.3]} 34...
Rg5 {[%clk 0:01:16.6]} 35. Nf3 {[%clk 0:00:10.8]} 35... Rg3 {[%clk 0:01:12.5]}
36. e5 {[%clk 0:00:10.4]} 36... dxe5 {[%clk 0:01:11.1]} 37. Nxe5 {[%clk
0:00:11.6]} 37... Bxh3 {[%clk 0:01:12.2]} 38. gxh3 {[%clk 0:00:05.7]} 38...
Rxh3+ {[%clk 0:01:08.1]} 39. Kg1 {[%clk 0:00:06.9]} 39... Re3 {[%clk 0:00:37.9]}
40. Ng4 {[%clk 0:00:05.6]} 40... Qg5 {[%clk 0:00:35.6]} 41. Qg2 {[%clk
0:00:03.6]} 41... Rg3 {[%clk 0:00:36.1]} 42. Qxg3 {[%clk 0:00:04.6]} 42... fxg3
{[%clk 0:00:37]} 43. Rd4 {[%clk 0:00:05.1]} 43... h5 {[%clk 0:00:30.1]} 44. Ne3
{[%clk 0:00:04.5]} 44... Nf4 {[%clk 0:00:29.6]} 45. Ng2 {[%clk 0:00:02.7]} 45...
Nh3+ {[%clk 0:00:24.1]} 46. Kh1 {[%clk 0:00:03.9]} 46... Nf2+ {[%clk 0:00:24.8]}
47. Kg1 {[%clk 0:00:05.3]} 47... Ng4 {[%clk 0:00:18.5]} 48. Rf4 {[%clk
0:00:05.1]} 48... Nd3 {[%clk 0:00:18]} 49. Rf8 {[%clk 0:00:05]} 49... Nxe1
{[%clk 0:00:17.8]} 50. Be4+ {[%clk 0:00:04]} 50... g6 {[%clk 0:00:18.9]} 51.
Nxe1 {[%clk 0:00:04.2]} 51... Qe3+ {[%clk 0:00:19.9]} 52. Kg2 {[%clk 0:00:05.4]}
52... Qxe4+ {[%clk 0:00:19.4]} 53. Kh3 {[%clk 0:00:06.1]} 53... Qxe1 {[%clk
0:00:19]} 0-1